bitfinex/quotes_ETHUSD_20250328
["timestamp","ask_amount","ask_price","bid_price","bid_amount"]
[1743189505805,3.82347417,1883.2,1882.8,6.13216]
[1743189505806,5.31028,1883.2,1882.8,6.13216]
[1743189506005,5.31028,1883.2,1882.9,5.047]
[1743189506532,9.13332417,1883.3,1883.0,0.8278]
[1743189506533,5.31,1883.3,1883.0,0.8278]
[1743189506749,9.13347417,1883.3,1883.0,0.8278]
[1743189507314,5.31013,1883.2,1883.0,0.8278]
[1743189508134,14.44334417,1883.3,1883.0,0.8278]
[1743189508442,10.61987,1883.3,1883.0,0.8278]
[1743189508610,5.30985,1883.3,1883.0,6.13844]
[1743189508815,5.30985,1883.3,1883.0,0.8278]
[1743189509012,9.13303417,1883.4,1883.0,0.8278]
[1743189509212,6.08907,1883.5,1883.0,0.8278]
[1743189509213,9.13285417,1883.5,1883.1,5.3103]
[1743189509430,8.30899,1883.6,1883.2,0.8278]
[1743189509630,5.3093,1883.5,1883.2,0.8278]
[1743189510250,9.13246417,1883.6,1883.2,6.13785]
[1743189510431,10.6182,1883.6,1883.3,5.046]
[1743189510644,5.30936,1883.5,1883.3,6.164385]
[1743189510836,10.6189,1883.5,1883.3,6.164385]
[1743189511036,5.30954,1883.4,1883.3,6.164385]
[1743189511238,5.30954,1883.4,1883.3,5.046]
[1743189512035,14.44283417,1883.4,1883.2,0.8278]
[1743189512357,5.31018,1883.2,1883.0,5.046]
[1743189512560,9.13304417,1883.4,1883.0,10.35657]
[1743189512759,5.30993,1883.3,1883.0,5.046]
[1743189512931,10.61999,1883.3,1883.0,5.046]
[1743189513327,3.82347417,1883.4,1883.0,10.35656]
[1743189513328,5.30961,1883.4,1883.0,10.35656]
[1743189513557,10.61936,1883.4,1883.0,11.99899]
[1743189513725,5.30985,1883.3,1883.1,0.757]
[1743189518362,5.30955,1883.4,1883.1,0.757]
[1743189518569,10.61931,1883.4,1883.1,0.757]
[1743189519071,5.30984,1883.3,1883.1,0.757]
[1743189522290,5.30917,1883.6,1883.3,0.8164]
[1743189522738,5.30917,1883.6,1883.4,5.036]
[1743189524083,10.61835,1883.6,1883.4,5.036]
[1743189524793,5.30916,1883.6,1883.4,5.036]
[1743189525474,10.61838,1883.6,1883.4,5.036]
[1743189526200,5.30916,1883.6,1883.4,5.036]
[1743189527678,10.61836,1883.6,1883.4,5.036]
[1743189527876,5.30873,1883.7,1883.4,5.036]
[1743189528085,5.30873,1883.7,1883.4,5.62124]
[1743189528388,10.61762,1883.7,1883.4,5.62124]
[1743189529698,9.13246417,1883.6,1883.4,5.036]
[1743189529901,5.30926,1883.5,1883.4,5.036]
[1743189530201,5.30926,1883.5,1883.3,5.8524]
[1743189531300,0.8102,1883.4,1882.4,0.608698]
[1743189531489,5.31145,1882.8,1882.5,1.05946797]
[1743189531690,5.31111,1882.9,1882.5,0.6721166]
[1743189531907,5.31111,1882.9,1882.6,0.7699]
[1743189532202,5.31111,1882.9,1882.6,6.08165]
[1743189532701,5.31073,1883.0,1882.6,6.08165]
[1743189532906,5.31073,1883.0,1882.6,6.08156]
[1743189533277,4.63367417,1883.2,1882.7,0.608156]
[1743189533475,5.31086,1883.0,1882.8,5.058]
[1743189533773,5.31043,1883.1,1882.8,5.058]
[1743189534175,5.31068,1883.0,1882.8,5.058]
[1743189534700,5.31043,1883.1,1882.8,5.058]
[1743189534997,10.62034,1883.2,1882.9,0.795]
[1743189535370,5.31012,1883.2,1882.9,0.795]
[1743189535571,10.62046,1883.2,1882.9,0.795]
[1743189535995,5.31042,1883.1,1882.9,0.795]
[1743189538003,5.31042,1883.1,1882.9,5.846]
[1743189538373,5.31012,1883.2,1882.9,5.846]
[1743189538904,5.30973,1883.4,1882.9,7.11851472]
[1743189539206,5.30973,1883.4,1882.9,7.065408]
[1743189539384,5.30983,1883.3,1883.0,5.31065]
[1743189540206,5.30983,1883.3,1882.9,11.15686]
[1743189540601,10.6193,1883.4,1882.9,11.15693]
[1743189540904,5.30983,1883.3,1882.9,11.15691]
[1743189541307,5.30983,1883.3,1882.9,16.46768]
[1743189541606,5.30983,1883.3,1883.0,1.646768]
[1743189541812,5.30963,1883.4,1883.0,6.957228]
[1743189541984,5.30963,1883.4,1883.1,0.8204]
[1743189542604,5.30926,1883.5,1883.1,6.13064]
[1743189542816,5.30901,1883.6,1883.2,5.30998]
[1743189542977,5.30901,1883.6,1883.4,0.8204]
[1743189543620,5.30894,1883.7,1883.4,0.8204]
[1743189543912,5.3086,1883.8,1883.4,0.8204]
[1743189544077,10.61774,1883.7,1883.4,0.8204]
[1743189545106,5.30883,1883.7,1883.4,0.8204]
[1743189545310,5.30883,1883.7,1883.4,1.9912078]
[1743189545710,5.30883,1883.7,1883.4,0.8204]
[1743189546011,10.61776,1883.7,1883.4,0.8204]
[1743189546397,5.30883,1883.7,1883.4,0.8204]
[1743189546578,10.61774,1883.7,1883.4,0.8204]
[1743189547410,5.30883,1883.7,1883.4,0.8204]
[1743189547811,5.30883,1883.7,1883.4,1.7195463]
[1743189548390,5.30883,1883.7,1883.4,7.0290263]
[1743189548616,5.35815,1883.9,1883.5,5.36224972]
[1743189548809,0.05,1883.9,1883.6,6.09863]
[1743189549007,0.05,1883.9,1883.7,5.09408166]
[1743189549198,0.05,1883.9,1883.7,6.16026717]
[1743189550224,5.35815,1883.9,1883.7,6.16026717]
[1743189550527,0.05,1883.9,1883.7,6.21334887]
[1743189550707,0.05,1883.9,1883.8,6.09821]
[1743189552235,0.05,1883.9,1883.7,6.95436717]
[1743189552386,0.05,1883.9,1883.8,0.69543672]
[1743189553619,5.30864,1883.8,1883.6,5.042]
[1743189554330,6.13066,1883.9,1883.6,5.042]
[1743189554489,5.30851,1883.8,1883.6,5.042]
[1743189554820,5.3087,1883.7,1883.6,5.042]
[1743189556634,5.30851,1883.8,1883.6,5.042]
[1743189557934,5.3087,1883.7,1883.6,5.042]
[1743189558313,5.30851,1883.8,1883.6,5.042]
[1743189558527,5.3087,1883.7,1883.6,5.042]
[1743189562342,5.30943,1883.5,1883.4,5.035]
[1743189562641,10.61817,1883.6,1883.4,5.035]
[1743189562813,5.30926,1883.5,1883.4,5.035]
[1743189563018,5.30906,1883.6,1883.4,5.035]
[1743189563223,5.30872,1883.7,1883.4,5.035]
[1743189563422,5.30872,1883.7,1883.4,5.08809009]
[1743189563633,5.30872,1883.7,1883.4,5.035]
[1743189563834,5.30872,1883.7,1883.4,5.0880894]
[1743189564650,5.30899,1883.6,1883.4,5.035]
[1743189564949,5.30878,1883.7,1883.4,12.908318]
[1743189565151,5.30878,1883.7,1883.4,7.598778]
[1743189565352,5.30878,1883.7,1883.4,5.035]
[1743189565649,5.30878,1883.7,1883.5,14.5]
[1743189566021,5.30878,1883.7,1883.4,10.34452]
[1743189566537,5.30878,1883.7,1883.5,14.5]
[1743189568922,5.30878,1883.7,1883.4,11.41078922]
[1743189569122,5.30899,1883.6,1883.4,7.85262614]
[1743189569657,5.30878,1883.7,1883.4,7.85262614]
[1743189569949,10.61766,1883.7,1883.4,6.78635692]
[1743189570148,5.309,1883.6,1883.4,5.035]
[1743189573660,5.30878,1883.7,1883.4,5.035]
[1743189574130,5.30846,1883.8,1883.6,0.8037]
[1743189574954,6.11,1883.9,1883.6,0.8037]
[1743189575252,6.11,1883.9,1883.7,5.30853]
[1743189575562,11.41813,1883.9,1883.8,5.035]
[1743189575861,5.30926,1883.5,1883.2,0.8161]
[1743189576066,5.30926,1883.5,1883.4,5.035]
[1743189583357,5.30901,1883.6,1883.4,19.535]
[1743189584555,11.39852,1883.7,1883.4,19.535]
[1743189584858,9.93347417,1883.9,1883.4,19.535]
[1743189584859,6.11815,1883.8,1883.5,5.30924]
[1743189585042,5.30845,1883.8,1883.5,0.753]
[1743189585556,10.61709,1883.8,1883.5,0.753]
[1743189585768,5.30871,1883.7,1883.5,0.753]
[1743189586565,5.30845,1883.8,1883.5,6.06222]
[1743189586860,5.30845,1883.8,1883.5,8.72290794]
[1743189587360,5.30845,1883.8,1883.5,3.41368794]
[1743189588861,11.41814,1883.9,1883.5,8.77593433]
[1743189589029,6.11,1883.9,1883.6,5.30888]
[1743189589229,11.41824,1883.9,1883.5,8.72284794]
[1743189589535,11.41824,1883.9,1883.6,0.87228479]
[1743189589765,11.41824,1883.9,1883.6,6.18124479]
[1743189590265,16.72657,1883.9,1883.6,0.87228479]
[1743189590439,11.41824,1883.9,1883.5,8.72277794]
[1743189591445,11.41824,1883.9,1883.5,14.03188794]
[1743189591635,11.41824,1883.9,1883.5,8.72277794]
[1743189592065,16.72658,1883.9,1883.5,23.22277794]
[1743189592663,11.41824,1883.9,1883.5,23.22277794]
[1743189592871,11.41824,1883.9,1883.6,7.63123779]
[1743189593235,11.41824,1883.9,1883.6,2.32227779]
[1743189593582,5.30881,1883.7,1883.5,0.753]
[1743189595838,6.11,1883.9,1883.6,11.754792]
[1743189596959,6.11,1883.9,1883.6,6.445912]
[1743189597184,11.41823,1883.9,1883.6,6.445912]
[1743189597338,11.41823,1883.9,1883.6,5.30884]
[1743189597537,16.72656,1883.9,1883.5,6.06224]
[1743189597755,11.41823,1883.9,1883.5,11.37133]
[1743189597961,6.11,1883.9,1883.6,5.30887]
[1743189598366,11.41816,1883.9,1883.6,5.30887]
[1743189600176,11.41816,1883.9,1883.5,6.06209]
[1743189600380,3.82347417,1883.7,1883.3,5.034]
[1743189600575,14.44112417,1883.7,1883.3,10.34369]
[1743189600882,5.30873,1883.7,1883.3,10.34369]
[1743189601077,6.11,1883.9,1883.4,0.8297]
[1743189601278,6.11,1883.9,1883.8,5.30841]
[1743189602049,0.05,1883.9,1883.8,6.19118742]
[1743189602248,0.05,1883.9,1883.8,6.68811]
[1743189602465,0.05,1883.9,1883.8,8.391187]
[1743189603068,0.05,1883.9,1883.8,9.47578984]
[1743189603778,6.06,1884.4,1884.3,5.30701]
[1743189603961,12.1923,1884.8,1884.4,5.3067]
[1743189604165,17.49802,1884.8,1884.4,5.30662]
[1743189604368,16.01577417,1884.8,1884.4,5.30664]
[1743189604682,12.1923,1884.8,1884.4,5.30664]
[1743189604856,12.1923,1884.8,1884.3,10.34093]
[1743189605056,5.30599,1884.7,1884.2,6.08557]
[1743189605256,5.30599,1884.7,1884.3,10.33997]
[1743189605482,12.19221,1884.8,1884.3,24.8399]
[1743189605701,12.19221,1884.8,1884.4,5.30666]
[1743189606711,17.49807,1884.8,1884.4,5.30666]
[1743189607067,12.19221,1884.8,1884.4,5.30666]
[1743189607319,5.3062,1884.6,1884.3,5.033]
[1743189607882,5.3059,1884.7,1884.3,10.33984]
[1743189608206,6.12098,1884.6,1884.3,5.033]
[1743189609019,5.30659,1884.5,1884.1,6.09117]
[1743189609311,6.12091,1884.6,1884.2,5.3071]
[1743189609512,5.30645,1884.5,1884.1,5.30737]
[1743189609801,0.8147,1884.6,1884.1,2.61482119]
[1743189610002,5.30684,1884.4,1884.1,1.04999919]
[1743189610216,6.06,1884.3,1884.0,10.34073]
[1743189610515,6.06,1884.3,1884.0,15.64848]
[1743189610687,6.06,1884.3,1884.0,10.34073]
[1743189610886,6.06,1884.3,1884.0,11.905614]
[1743189611271,6.06,1884.3,1884.1,5.30753]
[1743189612694,6.06,1884.3,1884.2,5.30729]
[1743189612879,6.06,1884.3,1884.1,5.30753]
[1743189613078,6.06,1884.4,1884.1,5.30753]
[1743189613289,11.36674,1884.4,1884.1,5.30753]
[1743189614499,6.06,1884.4,1884.2,5.30719]
[1743189614992,6.06,1884.4,1884.2,6.368574]
[1743189615186,6.06,1884.4,1884.3,5.30701]
[1743189616930,6.06,1884.4,1884.1,5.30756]
[1743189617081,6.06,1884.4,1884.1,10.61504]
[1743189617282,6.06,1884.4,1884.1,5.30739]
[1743189617586,6.06,1884.4,1884.2,5.30727]
[1743189618715,6.06,1884.4,1884.3,5.30701]
[1743189619112,11.36632,1884.6,1884.2,6.368736]
[1743189619283,16.67266,1884.6,1884.2,5.30727]
[1743189619479,11.36632,1884.6,1884.2,5.30727]
[1743189619809,16.67267,1884.6,1884.2,5.30727]
[1743189620008,11.36632,1884.6,1884.2,10.61441]
[1743189620214,11.36632,1884.6,1884.3,5.3069]
[1743189620388,11.36632,1884.6,1884.2,5.30714]
[1743189620596,5.3065,1884.5,1884.2,5.30714]
[1743189620814,11.36632,1884.6,1884.2,5.30713]
[1743189621027,11.36632,1884.6,1884.2,11.69575358]
[1743189621232,16.67267,1884.6,1884.2,6.38859358]
[1743189621440,6.06,1884.6,1884.2,6.38859358]
[1743189621742,0.8096,1884.5,1884.2,2.25107594]
[1743189621948,6.11621,1884.5,1884.2,1.08146358]
[1743189623006,0.8096,1884.5,1884.2,6.38862358]
[1743189623224,0.8096,1884.5,1884.2,11.69579358]
[1743189623570,0.8096,1884.5,1884.2,6.38862358]
[1743189624266,0.8096,1884.5,1884.2,6.38861358]
[1743189624563,6.11624,1884.5,1884.2,1.08146358]
[1743189624731,6.11624,1884.5,1884.1,5.30755]
[1743189624933,5.30682,1884.4,1884.1,1.19664629]
[1743189625131,5.30682,1884.4,1884.1,2.26502121]
[1743189625881,12.17624,1884.5,1884.1,7.57246121]
[1743189625882,17.48296,1884.5,1884.1,7.57246121]
[1743189626047,6.05959,1884.2,1883.8,5.30826]
[1743189626243,5.30768,1884.1,1883.8,5.032]
[1743189626457,5.30801,1884.0,1883.6,33.39175]
[1743189626629,5.30801,1884.0,1883.7,8.371175]
[1743189627284,5.30841,1883.8,1883.7,3.339175]
[1743189627431,6.06,1883.8,1883.6,33.115]
[1743189627628,11.36855,1883.8,1883.6,5.032]
[1743189628047,5.30922,1883.6,1883.4,5.032]
[1743189628251,5.30882,1883.7,1883.4,10.34149]
[1743189628586,6.06,1883.8,1883.5,5.3091]
[1743189628756,11.36844,1883.8,1883.4,12.51450074]
[1743189629493,6.06,1883.8,1883.5,5.30913]
[1743189630087,11.36844,1883.8,1883.5,5.30913]
[1743189630806,11.36844,1883.8,1883.4,7.20501074]
[1743189631100,5.30879,1883.7,1883.4,5.032]
[1743189631599,5.3088,1883.7,1883.4,5.032]
[1743189631801,6.10659,1883.6,1883.5,0.14655726]
[1743189632097,5.30954,1883.4,1883.3,1.0824904]
[1743189632397,9.93051417,1883.4,1883.3,0.13434416]
[1743189632813,6.08491,1883.2,1883.0,6.10740258]
[1743189632969,12.14497,1883.2,1883.0,5.033]
[1743189633868,10.65817417,1883.2,1882.6,6.08352]
[1743189634069,10.65817417,1883.2,1882.7,5.033]
[1743189634070,5.31056,1883.1,1882.7,5.033]
[1743189634517,5.31056,1883.1,1882.7,10.34441]
[1743189635722,15.96829417,1883.2,1882.1,0.45631088]
[1743189635723,5.3125,1882.4,1882.1,0.45631088]
[1743189635955,5.31284,1882.3,1882.1,0.45631088]
[1743189636443,5.31293,1882.2,1882.1,0.05]
[1743189636952,1.05367962,1883.0,1882.3,0.55]
[1743189637112,6.06,1883.1,1883.0,5.31067]
[1743189637307,6.06,1883.4,1883.2,5.31]
[1743189637506,6.06,1883.4,1883.1,10.62056]
[1743189637700,6.06,1883.4,1883.0,6.203002]
[1743189637917,6.06,1883.4,1883.1,5.31031]
[1743189638208,6.06,1883.4,1883.1,5.31038]
[1743189638543,6.06,1883.4,1883.1,5.31034]
[1743189638696,6.06,1883.4,1883.1,5.31017]
[1743189639118,6.06,1883.4,1883.2,5.31011]
[1743189639402,6.06,1883.4,1883.1,5.31017]
[1743189640409,6.06,1883.4,1883.2,5.31002]
[1743189640614,6.06,1883.4,1883.1,5.31017]
[1743189641499,6.06,1883.4,1883.3,5.30982]
[1743189642413,6.06,1883.5,1883.3,5.30982]
[1743189642820,6.06,1883.5,1883.2,5.31004]
[1743189643628,5.30997,1883.3,1883.0,1.06825367]
[1743189643948,5.30997,1883.3,1882.9,5.058]
[1743189643949,5.31022,1883.2,1882.9,5.058]
[1743189644158,5.31062,1883.1,1882.9,5.058]
[1743189644334,9.13358417,1883.2,1882.9,5.058]
[1743189644510,9.13358417,1883.2,1882.8,5.31113]
[1743189644815,10.62046,1883.2,1882.8,10.36903]
[1743189645133,5.31011,1883.2,1882.8,10.36903]
[1743189645436,5.31011,1883.2,1882.8,10.36902]
[1743189645632,5.31013,1883.2,1882.8,10.36902]
[1743189645843,12.12948,1883.3,1882.9,5.31095]
[1743189646148,6.8196,1883.3,1883.0,5.31055]
[1743189646350,12.12945,1883.3,1882.9,5.31082]
[1743189646847,12.12945,1883.3,1883.0,5.31066]
[1743189647051,6.8196,1883.3,1883.0,5.44287414]
[1743189650737,6.06,1883.3,1883.1,5.31027]
[1743189650959,6.06,1883.3,1883.1,6.09887]
[1743189651260,6.06,1883.3,1883.2,5.44232414]
[1743189652026,6.06,1883.3,1883.2,0.13221414]
[1743189652563,6.06,1883.3,1883.2,5.44232414]
[1743189653234,6.06,1883.3,1883.2,0.13221414]
[1743189654154,12.16617,1883.5,1883.2,0.13221414]
[1743189654660,5.30965,1883.4,1883.2,0.13221414]
[1743189654830,12.16624,1883.5,1883.2,0.13221414]
[1743189655030,17.47571,1883.5,1883.2,0.13221414]
[1743189655467,12.16624,1883.5,1883.2,0.13221414]
[1743189656167,5.30982,1883.3,1883.2,0.13221414]
[1743189656460,5.30982,1883.3,1882.9,5.31095]
[1743189656658,5.30982,1883.3,1883.2,0.13165876]
[1743189656855,5.30957,1883.4,1883.0,5.31064]
[1743189657064,12.16619,1883.5,1883.2,0.13165876]
[1743189657364,12.16619,1883.5,1883.3,0.13165876]
[1743189657734,12.16619,1883.5,1883.1,5.31025]
[1743189657934,12.16619,1883.5,1883.2,5.44187388]
[1743189658466,12.16619,1883.5,1883.2,0.13184388]
[1743189658655,17.47566,1883.5,1883.2,0.13184388]
[1743189658855,5.30956,1883.4,1883.2,0.13184388]
[1743189659381,5.30956,1883.4,1883.3,0.13184388]
[1743189659581,10.61931,1883.4,1883.0,5.31066]
[1743189659880,10.61931,1883.4,1882.9,6.13474]
[1743189659881,5.30992,1883.3,1883.1,0.13184388]
[1743189660040,11.36992,1883.3,1883.1,0.13184388]
[1743189660379,6.06,1883.3,1883.2,0.1319673]
[1743189660580,6.06,1883.3,1883.0,5.31055]
[1743189660780,6.06,1883.3,1883.1,0.1319673]
[1743189661212,11.36992,1883.3,1883.1,0.1319673]
[1743189661380,6.06,1883.3,1883.1,0.1319673]
[1743189661585,6.06,1883.3,1883.0,5.31052]
[1743189661891,6.06,1883.3,1883.1,5.31033]
[1743189662295,6.06,1883.3,1883.2,0.1319673]
[1743189663010,6.06,1883.3,1883.0,5.31064]
[1743189663320,6.06,1883.3,1883.1,0.1319673]
[1743189663478,6.06,1883.3,1883.1,5.4421373]
[1743189663880,6.06,1883.3,1883.1,0.1319673]
[1743189664322,6.06,1883.3,1883.1,5.4423373]
[1743189665025,6.06,1883.3,1883.1,0.1319673]
[1743189665210,11.36985,1883.3,1883.1,0.1319673]
[1743189665394,11.36985,1883.3,1882.9,20.63467]
[1743189665594,11.36985,1883.3,1883.0,0.13215242]
[1743189666204,5.31039,1883.1,1883.0,0.13215242]
[1743189666525,5.31119,1882.9,1882.5,11.15175]
[1743189666823,6.06,1882.8,1882.6,0.13227584]
[1743189667212,6.06,1882.8,1882.6,5.44406584]
[1743189667418,6.06,1882.8,1882.6,0.13227584]
[1743189667711,11.37134,1882.8,1882.6,0.13227584]
[1743189668480,6.06,1882.8,1882.6,0.13227584]
[1743189672096,11.37125,1882.8,1882.6,0.13227584]
[1743189672405,5.31152,1882.7,1882.6,0.13227584]
[1743189672610,5.3119,1882.6,1882.3,5.043]
[1743189672804,0.7814,1882.5,1882.4,0.137399]
[1743189673008,0.7814,1882.5,1882.2,52.95468]
[1743189673288,0.7814,1882.5,1882.3,0.137399]
[1743189673737,5.3118,1882.6,1882.3,5.449929]
[1743189674035,10.62379,1882.6,1882.4,1.0483274]
[1743189674351,5.3118,1882.6,1882.4,1.0483274]
[1743189674550,10.62384,1882.6,1882.5,0.137399]
[1743189674748,5.3118,1882.6,1882.5,0.137399]
[1743189676460,12.34910362,1882.6,1882.5,0.137399]
[1743189676828,5.31247,1882.4,1882.1,0.05]
[1743189677557,6.06,1882.3,1882.1,0.05]
[1743189678061,6.06,1882.3,1882.1,5.36319]
[1743189678723,6.06,1882.3,1882.2,6.07153]
[1743189679256,6.06,1882.3,1882.2,0.7586]
[1743189679551,6.06,1882.3,1882.1,5.36313]
[1743189680319,6.06,1882.3,1882.1,7.012369]
[1743189680629,6.06,1882.3,1882.2,6.09223]
[1743189680829,16.68333,1882.7,1882.3,5.3125]
[1743189681048,16.68333,1882.7,1882.2,6.09219]
[1743189681049,5.31191,1882.6,1882.2,11.40497]
[1743189681255,5.31191,1882.6,1882.3,5.31262]
[1743189681850,11.37161,1882.7,1882.3,5.31262]
[1743189682232,11.37161,1882.7,1882.3,6.45309]
[1743189682553,6.06,1882.7,1882.5,5.31206]
[1743189682741,6.06,1882.7,1882.5,6.13856]
[1743189683144,6.06,1882.7,1882.5,0.8265]
[1743189684358,6.06,1882.7,1882.5,6.13847]
[1743189684554,6.06,1882.7,1882.5,2.47606]
[1743189684860,6.06,1882.7,1882.6,5.3118]
[1743189686629,6.06,1882.9,1882.7,10.62277]
[1743189686824,6.06,1882.9,1882.8,0.7709]
[1743189687158,6.06,1882.9,1882.6,6.08267]
[1743189687358,11.37098,1882.9,1882.6,0.7709]
[1743189687537,5.31125,1882.8,1882.4,11.12824]
[1743189687860,12.13748,1882.9,1882.5,5.31207]
[1743189689158,6.06,1882.9,1882.6,10.62339]
[1743189689361,6.06,1882.9,1882.7,6.0824]
[1743189689727,6.06,1882.9,1882.8,5.31123]
[1743189690828,6.06,1882.9,1882.7,6.0824]
[1743189691032,6.06,1882.9,1882.8,5.31123]
[1743189691843,6.06,1882.9,1882.8,5.45048134]
[1743189692043,6.06,1882.9,1882.8,5.18025134]
[1743189692256,6.06,1882.9,1882.8,0.13925134]
[1743189692565,12.1571,1883.0,1882.8,0.13925134]
[1743189692933,6.8464,1883.0,1882.8,0.13925134]
[1743189693743,6.06,1883.0,1882.8,0.13925134]
[1743189693937,6.06,1883.0,1882.8,12.62020747]
[1743189694566,6.06,1883.0,1882.8,7.30897747]
[1743189695474,6.06,1883.0,1882.8,0.94885134]
[1743189697573,6.06,1883.0,1882.8,0.13925134]
[1743189698066,11.37069,1883.0,1882.8,0.13925134]
[1743189701081,6.06,1883.0,1882.8,0.13925134]
[1743189701280,6.06,1883.0,1882.8,5.45038134]
[1743189701449,6.06,1883.0,1882.8,7.03055647]
[1743189703597,6.06,1883.0,1882.9,0.7648]
[1743189703883,11.3702,1883.2,1882.9,0.9001618]
[1743189704280,11.3702,1883.2,1882.9,6.2111118]
[1743189704488,6.06,1883.2,1883.0,10.62108]
[1743189704785,6.06,1883.2,1883.1,0.13492972]
[1743189705281,6.06,1883.2,1883.1,5.98986269]
[1743189705493,6.06,1883.2,1883.1,0.67947269]
[1743189705788,6.06,1883.2,1883.1,0.13492972]
[1743189708802,6.06,1883.2,1882.9,11.38649]
[1743189708973,6.06,1883.2,1883.0,5.44510595]
[1743189709495,6.06,1883.2,1883.0,5.44492595]
[1743189709796,6.06,1883.2,1883.1,10.34639]
[1743189710174,12.20177,1883.5,1883.1,10.48082595]
[1743189711502,12.20177,1883.5,1883.2,5.31008]
[1743189711869,17.51122,1883.5,1883.1,10.34639]
[1743189712490,17.51122,1883.5,1883.2,0.13443595]
[1743189713805,5.30957,1883.4,1883.2,0.13443595]
[1743189715906,12.20177,1883.5,1883.2,0.13443595]
[1743189717322,17.51122,1883.5,1883.2,0.13443595]
[1743189717975,12.20177,1883.5,1883.2,0.13443595]
[1743189720208,17.51125,1883.5,1883.2,0.13443595]
[1743189721304,12.20177,1883.5,1883.2,0.13443595]
[1743189721507,6.06,1883.5,1883.3,5.3098]
[1743189721710,6.06,1883.5,1883.4,0.53098]
[1743189722021,6.06,1883.5,1883.4,0.13283129]
[1743189722022,12.96123417,1883.5,1883.4,0.13283129]
[1743189722230,5.31051,1883.1,1882.7,5.8206]
[1743189722381,6.13901,1883.1,1882.8,0.11890183]
[1743189722581,5.31083,1883.0,1882.8,0.11890183]
[1743189722826,10.6217,1883.0,1882.6,10.34666]
[1743189723126,10.62174,1883.0,1882.7,0.11890183]
[1743189723506,6.06,1883.2,1882.8,6.09678]
[1743189723507,11.37029,1883.2,1882.8,6.09678]
[1743189723825,6.06,1883.2,1883.0,5.31063]
[1743189724027,6.06,1883.2,1883.0,5.31062]
[1743189724318,6.06,1883.2,1883.1,0.531062]
[1743189724516,5.30978,1883.4,1883.1,0.531062]
[1743189724678,5.30968,1883.4,1883.1,0.531062]
[1743189726222,17.50719,1883.5,1883.1,5.841342]
[1743189726385,12.19776,1883.5,1883.1,5.841342]
[1743189726726,5.30966,1883.4,1883.1,0.531062]
[1743189727016,5.30993,1883.3,1883.1,0.531062]
[1743189727176,5.30993,1883.3,1883.0,5.036]
[1743189727612,5.3096,1883.4,1883.0,5.036]
[1743189727814,5.3096,1883.4,1883.0,10.34649]
[1743189728012,12.19792,1883.5,1883.0,10.34649]
[1743189728013,6.06,1883.5,1883.4,5.30954]
[1743189728180,0.818,1883.7,1883.5,5.30916]
[1743189728181,6.06,1883.7,1883.5,5.30916]
[1743189728383,0.2,1883.6,1883.5,5.30916]
[1743189728608,0.2,1883.6,1883.4,11.655494]
[1743189728810,5.30849,1883.8,1883.4,11.655494]
[1743189728984,10.61712,1883.8,1883.4,11.655494]
[1743189729184,5.30849,1883.8,1883.4,6.345954]
[1743189729385,5.30926,1883.5,1883.4,5.042]
[1743189732410,5.30926,1883.5,1883.2,0.7661]
[1743189732611,5.30926,1883.5,1883.2,5.8071]
[1743189733332,5.3098,1883.4,1883.1,5.04]
[1743189733628,11.3698,1883.4,1883.1,5.043]
[1743189734141,6.06,1883.4,1883.1,5.043]
[1743189734285,6.06,1883.4,1883.2,5.3101]
[1743189734486,6.06,1883.4,1883.3,6.10742]
[1743189735428,6.06,1884.1,1883.7,6.10553]
[1743189735628,5.30776,1884.1,1883.7,6.10553]
[1743189735780,5.30787,1884.0,1883.7,6.10553]
[1743189736138,5.30787,1884.0,1883.7,0.7969]
[1743189736807,5.30787,1884.0,1883.8,0.11853193]
[1743189736808,10.61596,1884.0,1883.8,0.11853193]
[1743189737014,5.30787,1884.0,1883.8,0.11853193]
[1743189737894,5.71284572,1884.1,1883.8,0.11853193]
[1743189738095,5.3076,1884.1,1883.8,0.11853193]
[1743189738909,6.06,1884.2,1883.9,5.30802]
[1743189739219,11.3673,1884.2,1884.0,0.11588208]
[1743189739514,5.30757,1884.1,1884.0,0.11588208]
[1743189742587,6.06,1884.2,1884.0,0.11588208]
[1743189745119,11.36737,1884.2,1884.0,0.11588208]
[1743189747522,9.13104417,1884.1,1884.0,0.11588208]
[1743189747711,12.13104417,1884.1,1884.0,0.11588208]
[1743189747903,0.7596,1883.7,1883.5,5.039]
[1743189748102,5.30898,1883.6,1883.5,5.039]
[1743189749227,5.30965,1883.4,1883.1,0.8232]
[1743189749523,5.30965,1883.4,1883.0,5.042]
[1743189749524,5.31011,1883.2,1883.0,5.042]
[1743189749697,5.30995,1883.3,1883.0,5.042]
[1743189749897,5.30995,1883.3,1883.0,8.969399]
[1743189750093,10.62005,1883.3,1883.0,8.969399]
[1743189750300,5.31025,1883.2,1883.0,5.042]
[1743189750519,10.62058,1883.2,1883.0,5.042]
[1743189750720,5.31025,1883.2,1883.0,5.042]
[1743189751918,5.31025,1883.2,1883.1,0.10160983]
[1743189753925,5.31039,1883.1,1882.9,33.14]
[1743189755349,5.31039,1883.1,1882.8,0.7821]
[1743189755640,5.31039,1883.1,1882.8,5.8221]
[1743189756141,5.31068,1883.0,1882.8,5.8221]
[1743189756544,5.31039,1883.1,1882.8,5.8221]